bitfinex/quotes_BTCUSD_20250208
["timestamp","ask_amount","ask_price","bid_price","bid_amount"]
[1738984462859,0.541972,96903.0,96896.0,0.154805]
[1738984463393,0.541972,96903.0,96896.0,0.001]
[1738984465133,0.540972,96903.0,96896.0,0.001]
[1738984465336,0.541972,96903.0,96896.0,0.001]
[1738984465635,0.541972,96903.0,96895.0,0.00045338]
[1738984465831,0.541972,96903.0,96895.0,0.15525938]
[1738984466238,0.540972,96903.0,96895.0,0.15525938]
[1738984466442,0.541972,96903.0,96895.0,0.00045338]
[1738984466849,0.541972,96903.0,96895.0,0.15525938]
[1738984467207,0.542972,96903.0,96895.0,0.15525938]
[1738984467514,0.542972,96903.0,96895.0,0.00045338]
[1738984468507,0.5430788,96903.0,96895.0,0.00045338]
[1738984468706,0.31942352,96902.0,96895.0,0.00045338]
[1738984469086,0.02497078,96901.0,96895.0,0.00045338]
[1738984469961,0.02497078,96901.0,96895.0,0.00145338]
[1738984470199,0.02597078,96901.0,96895.0,0.00145338]
[1738984470401,0.02597078,96901.0,96895.0,0.00045338]
[1738984471923,0.23236878,96901.0,96895.0,0.00045338]
[1738984472255,0.154803,96898.0,96895.0,0.00045338]
[1738984472631,0.02496832,96897.0,96895.0,0.00045338]
[1738984473058,0.17977232,96897.0,96895.0,0.00045338]
[1738984473827,0.18077232,96897.0,96895.0,0.00045338]
[1738984474584,0.18177232,96897.0,96895.0,0.00045338]
[1738984474786,0.31942352,96896.0,96895.0,0.00045338]
[1738984474989,0.34440428,96896.0,96895.0,0.00045338]
[1738984476282,0.49920928,96896.0,96895.0,0.00045338]
[1738984476485,0.57780928,96896.0,96895.0,0.00045338]
[1738984476708,0.57880928,96896.0,96895.0,0.00045338]
[1738984477120,0.42400428,96896.0,96895.0,0.00045338]
[1738984477456,0.42300428,96896.0,96895.0,0.00045338]
[1738984477673,0.34540428,96896.0,96895.0,0.00045338]
[1738984479525,0.34440428,96896.0,96895.0,0.00045338]
[1738984479923,0.34540428,96896.0,96895.0,0.00045338]
[1738984480332,0.34640428,96896.0,96895.0,0.00045338]
[1738984493023,0.34651108,96896.0,96895.0,0.00045338]
[1738984493683,0.34451108,96896.0,96895.0,0.00045338]
[1738984494069,0.34551108,96896.0,96895.0,0.00045338]
[1738984495023,0.02608756,96896.0,96895.0,0.10295703]
[1738984495199,0.02608756,96896.0,96895.0,0.28076303]
[1738984495634,0.0011068,96896.0,96895.0,0.28076303]
[1738984495969,0.0011068,96896.0,96895.0,0.31291269]
[1738984496210,0.0001068,96896.0,96895.0,0.31291269]
[1738984496658,0.0001068,96896.0,96895.0,0.31891269]
[1738984497182,0.0001068,96896.0,96895.0,0.32491269]
[1738984497420,0.0001068,96896.0,96895.0,0.33191269]
[1738984497941,0.0001068,96896.0,96895.0,0.32491269]
[1738984498114,0.0001068,96896.0,96895.0,0.33391269]
[1738984498735,0.0001068,96896.0,96895.0,0.32491269]
[1738984498935,0.0001068,96896.0,96895.0,0.34216972]
[1738984499137,0.0001068,96896.0,96895.0,0.33016972]
[1738984499674,0.0001068,96896.0,96895.0,0.33416972]
[1738984500075,0.0001068,96896.0,96895.0,0.34016972]
[1738984500515,0.0001068,96896.0,96895.0,0.48316972]
[1738984500697,0.0001068,96896.0,96895.0,0.49216972]
[1738984500892,0.0001068,96896.0,96895.0,0.48216972]
[1738984501295,0.0001068,96896.0,96895.0,0.48016972]
[1738984501504,0.0001068,96896.0,96895.0,0.48916972]
[1738984502339,0.0001068,96896.0,96895.0,0.48216972]
[1738984502837,0.0001068,96896.0,96895.0,0.48816972]
[1738984504799,0.0001068,96896.0,96895.0,0.43302006]
[1738984506067,0.0001068,96896.0,96895.0,0.28302006]
[1738984506288,0.39613032,96896.0,96895.0,0.01545338]
[1738984506698,0.4211589,96896.0,96895.0,0.01545338]
[1738984507045,0.4211589,96896.0,96895.0,0.10783281]
[1738984507687,0.4211589,96896.0,96895.0,0.09283281]
[1738984507896,0.4211589,96896.0,96895.0,0.10183281]
[1738984508315,0.4211589,96896.0,96895.0,0.09283281]
[1738984508737,0.4211589,96896.0,96895.0,0.09683281]
[1738984508881,0.4211589,96896.0,96895.0,0.09883281]
[1738984509753,0.4211589,96896.0,96895.0,0.00645338]
[1738984512699,0.4211589,96896.0,96895.0,0.16125938]
[1738984513115,0.39613032,96896.0,96895.0,0.16125938]
[1738984513784,0.42115663,96896.0,96895.0,0.00645338]
[1738984521433,0.62186163,96896.0,96895.0,0.00645338]
[1738984522749,0.62186163,96896.0,96895.0,0.00445338]
[1738984523125,0.62286163,96896.0,96895.0,0.00445338]
[1738984523279,0.62186163,96896.0,96895.0,0.00045338]
[1738984523479,0.62186163,96896.0,96895.0,0.00145338]
[1738984523689,0.72536528,96896.0,96895.0,0.00145338]
[1738984523888,0.74348151,96896.0,96895.0,0.00145338]
[1738984524258,0.74348151,96896.0,96895.0,0.00045338]
[1738984524440,0.74548151,96896.0,96895.0,0.00045338]
[1738984525893,0.72736528,96896.0,96895.0,0.00045338]
[1738984534341,0.87736528,96896.0,96895.0,0.00045338]
[1738984534686,0.281951,96867.0,96850.0,0.09399754]
[1738984534888,0.60137452,96867.0,96857.0,0.09399754]
[1738984535127,0.62634855,96867.0,96857.0,0.09399754]
[1738984535419,0.62634855,96867.0,96858.0,0.154865]
[1738984535777,0.62634855,96867.0,96866.0,0.00222428]
[1738984537416,0.62634855,96867.0,96866.0,0.00622428]
[1738984538004,0.47149755,96867.0,96866.0,0.00622428]
[1738984538746,0.62634855,96867.0,96866.0,0.00622428]
[1738984538894,0.47149755,96867.0,96866.0,0.00622428]
[1738984539443,0.62634855,96867.0,96866.0,0.00622428]
[1738984540728,0.47149755,96867.0,96866.0,0.00622428]
[1738984541660,0.62634855,96867.0,96866.0,0.00622428]
[1738984543406,0.62634855,96867.0,96866.0,0.00122428]
[1738984544440,0.47149755,96867.0,96866.0,0.00122428]
[1738984546538,0.62634855,96867.0,96866.0,0.00122428]
[1738984546737,0.47149755,96867.0,96866.0,0.00122428]
[1738984549253,0.47149755,96867.0,96866.0,0.25858093]
[1738984549254,0.34439755,96867.0,96866.0,0.25858093]
[1738984549542,0.34439755,96867.0,96866.0,0.28158093]
[1738984550333,0.34439755,96867.0,96866.0,0.28180521]
[1738984550709,0.34450435,96867.0,96866.0,0.28180521]
[1738984552479,0.34450435,96867.0,96866.0,0.29186846]
[1738984558605,0.34450435,96867.0,96866.0,0.02444856]
[1738984558811,0.34450435,96867.0,96866.0,0.17930156]
[1738984559015,0.34450435,96867.0,96866.0,0.02444856]
[1738984564484,0.62485535,96867.0,96866.0,0.00144856]
[1738984566804,0.02508083,96867.0,96866.0,0.43180521]
[1738984567000,0.0001068,96867.0,96866.0,0.46396651]
[1738984568733,0.0011068,96867.0,96866.0,0.47174223]
[1738984569050,0.0011068,96867.0,96866.0,0.48074223]
[1738984601247,0.0011068,96867.0,96866.0,0.5730914]
[1738984603963,0.0011068,96867.0,96866.0,0.48074223]
[1738984607081,0.0801068,96867.0,96866.0,0.45774223]
[1738984607286,0.1265068,96867.0,96866.0,0.30774223]
[1738984607585,0.1265068,96867.0,96866.0,0.20523858]
[1738984608136,0.1265068,96867.0,96866.0,0.22823858]
[1738984608296,0.1265068,96867.0,96866.0,0.21923858]
[1738984608495,0.1255068,96867.0,96866.0,0.21923858]
[1738984608697,0.1255068,96867.0,96866.0,0.22623858]
[1738984608895,0.1255068,96867.0,96866.0,0.21723858]
[1738984609107,0.1255068,96867.0,96866.0,0.18507728]
[1738984609460,0.1255068,96867.0,96866.0,0.19407728]
[1738984613538,0.1255068,96867.0,96866.0,0.18707728]
[1738984613758,0.1255068,96867.0,96866.0,0.17807728]
[1738984614088,0.14796575,96867.0,96866.0,0.17807728]
[1738984614301,0.14796575,96867.0,96866.0,0.18007728]
[1738984614497,0.14796575,96867.0,96866.0,0.18507728]
[1738984615309,0.14796575,96867.0,96866.0,0.18007728]
[1738984615516,0.14796575,96867.0,96866.0,0.18407728]
[1738984619128,0.14796575,96867.0,96866.0,0.00622428]
[1738984619614,0.14796575,96867.0,96866.0,0.16107728]
[1738984620006,0.1255068,96867.0,96866.0,0.16107728]
[1738984620285,0.14796575,96867.0,96866.0,0.16107728]
[1738984620955,0.14796575,96867.0,96866.0,0.00622428]
[1738984621160,0.62224027,96867.0,96866.0,0.00622428]
[1738984622103,0.62224027,96867.0,96866.0,0.00222428]
[1738984622929,0.62224027,96867.0,96866.0,0.00022428]
[1738984623360,0.62224027,96867.0,96866.0,0.00222428]
[1738984624062,0.62224027,96867.0,96866.0,0.00022428]
[1738984624383,0.62324027,96867.0,96866.0,0.00122428]
[1738984629785,0.62224027,96867.0,96866.0,0.00122428]
[1738984630144,0.62524027,96867.0,96866.0,0.00022428]
[1738984630339,0.62224027,96867.0,96866.0,0.00022428]
[1738984630586,0.62424027,96867.0,96866.0,0.00022428]
[1738984630814,0.62924027,96867.0,96866.0,0.00022428]
[1738984631023,0.62724027,96867.0,96866.0,0.00022428]
[1738984631397,0.63224027,96867.0,96866.0,0.00022428]
[1738984635235,0.6707514,96867.0,96866.0,0.00022428]
[1738984635435,0.63224027,96867.0,96866.0,0.00022428]
[1738984636181,0.03256575,96867.0,96866.0,0.08371895]
[1738984636380,0.03256575,96867.0,96866.0,0.29204955]
[1738984636595,0.03256575,96867.0,96866.0,0.29101723]
[1738984636719,0.0101068,96867.0,96866.0,0.29101723]
[1738984637136,0.0051068,96867.0,96866.0,0.29101723]
[1738984637566,0.0001068,96867.0,96866.0,0.29101723]
[1738984637763,0.0001068,96867.0,96866.0,0.29201723]
[1738984638043,0.0001068,96867.0,96866.0,0.29401723]
[1738984644531,0.0001068,96867.0,96866.0,0.29301723]
[1738984644758,0.0001068,96867.0,96866.0,0.29101723]
[1738984644959,0.0001068,96867.0,96866.0,0.29501723]
[1738984646039,0.0001068,96867.0,96866.0,0.29701723]
[1738984646244,0.0001068,96867.0,96866.0,0.29101723]
[1738984646696,0.0001068,96867.0,96866.0,0.29701723]
[1738984654416,0.0001068,96867.0,96866.0,0.00622428]
[1738984654640,0.55748132,96867.0,96866.0,0.00622428]
[1738984654811,0.57769069,96867.0,96866.0,0.00622428]
[1738984655394,0.57769069,96867.0,96866.0,0.00022428]
[1738984655596,0.57769069,96867.0,96866.0,0.00222428]
[1738984655764,0.57769069,96867.0,96866.0,0.00622428]
[1738984655963,0.57769069,96867.0,96866.0,0.00422428]
[1738984656240,0.57769069,96867.0,96866.0,0.00022428]
[1738984656241,0.58069069,96867.0,96866.0,0.00022428]
[1738984656518,0.58269069,96867.0,96866.0,0.00022428]
[1738984664655,0.42783969,96867.0,96866.0,0.00022428]
[1738984666162,0.58269069,96867.0,96866.0,0.00022428]
[1738984666300,0.63129069,96867.0,96866.0,0.00022428]
[1738984679182,0.18016717,96867.0,96866.0,0.00022428]
[1738984679420,0.02531617,96867.0,96866.0,0.43058093]
[1738984679619,0.02531617,96867.0,96866.0,0.46267506]
[1738984679804,0.0051068,96867.0,96866.0,0.46267506]
[1738984680037,0.0031068,96867.0,96866.0,0.46267506]
[1738984680391,0.0031068,96867.0,96866.0,0.48086989]
[1738984680994,0.0001068,96867.0,96866.0,0.48086989]
[1738984681454,0.0011068,96867.0,96866.0,0.48986989]
[1738984681644,0.0011068,96867.0,96866.0,0.48186989]
[1738984682081,0.0011068,96867.0,96866.0,0.49086989]
[1738984682280,0.0001068,96867.0,96866.0,0.48186989]
[1738984682614,0.0011068,96867.0,96866.0,0.48186989]
[1738984683219,0.0021068,96867.0,96866.0,0.49086989]
[1738984684444,0.0021068,96867.0,96866.0,0.46786989]
[1738984684654,0.0021068,96867.0,96866.0,0.43577576]
[1738984684970,0.0021068,96867.0,96866.0,0.45877576]
[1738984685327,0.0001068,96867.0,96866.0,0.44077576]
[1738984685531,0.0001068,96867.0,96866.0,0.44977576]
[1738984685765,0.0011068,96867.0,96866.0,0.45877576]
[1738984686744,0.0011068,96867.0,96866.0,0.30877576]
[1738984687767,0.02135016,96867.0,96866.0,0.30877576]
[1738984687914,0.02135016,96867.0,96866.0,0.29858093]
[1738984688509,0.02135016,96867.0,96866.0,0.28058093]
[1738984688510,0.02035016,96867.0,96866.0,0.28058093]
[1738984688716,0.02135016,96867.0,96866.0,0.28758093]
[1738984688973,0.02135016,96867.0,96866.0,0.29658093]
[1738984693027,0.02135016,96867.0,96866.0,0.17107728]
[1738984693346,0.09955016,96867.0,96866.0,0.17107728]
[1738984695111,0.41897368,96867.0,96866.0,0.01622428]
[1738984695313,0.62172468,96867.0,96866.0,0.01622428]
[1738984695723,0.34077368,96867.0,96866.0,0.09971895]
[1738984695954,0.46687368,96867.0,96866.0,0.03922428]
[1738984696821,0.46687368,96867.0,96866.0,0.03022428]
[1738984696969,0.46587368,96867.0,96866.0,0.02322428]
[1738984697153,0.46587368,96867.0,96866.0,0.02422428]
[1738984697929,0.46587368,96867.0,96866.0,0.02622428]
[1738984698208,0.47232776,96867.0,96866.0,0.02322428]
[1738984698570,0.47232776,96867.0,96866.0,0.02622428]
[1738984700253,0.47232776,96867.0,96866.0,0.02822428]
[1738984700468,0.47232776,96867.0,96866.0,0.02522428]
[1738984700870,0.47232776,96867.0,96866.0,0.02622428]
[1738984701331,0.47232776,96867.0,96866.0,0.02522428]
[1738984701689,0.47232776,96867.0,96866.0,0.00522428]
[1738984701899,0.02680424,96867.0,96866.0,0.10772793]
[1738984702117,0.00656088,96867.0,96866.0,0.10472793]
[1738984702459,0.00656088,96867.0,96866.0,0.12872793]
[1738984702781,0.00656088,96867.0,96866.0,0.12976008]
[1738984702981,0.00656088,96867.0,96866.0,0.12776008]
[1738984703643,0.00656088,96867.0,96866.0,0.12676008]
[1738984703870,0.0001068,96867.0,96866.0,0.12876008]
[1738984704343,0.0001068,96867.0,96866.0,0.12976008]
[1738984704500,0.0001068,96867.0,96866.0,0.13376008]
[1738984704700,0.0001068,96867.0,96866.0,0.12976008]
[1738984704921,0.0001068,96867.0,96866.0,0.12676008]
[1738984705165,0.0001068,96867.0,96866.0,0.13176008]
[1738984705394,0.0001068,96867.0,96866.0,0.1420772]
[1738984705643,0.0001068,96867.0,96866.0,0.14104505]
[1738984708445,0.0001068,96867.0,96866.0,0.13072793]
[1738984708995,0.00656009,96867.0,96866.0,0.13072793]
[1738984710369,0.00656009,96867.0,96866.0,0.12772793]
[1738984710767,0.00656009,96867.0,96866.0,0.12872793]
[1738984711177,0.00656009,96867.0,96866.0,0.13072793]
[1738984713584,0.00656009,96867.0,96866.0,0.28558093]
[1738984716932,0.00656009,96867.0,96866.0,0.28058093]
[1738984717335,0.00656009,96867.0,96866.0,0.28558093]
[1738984717972,0.01688561,96867.0,96866.0,0.28558093]
[1738984718883,0.01688561,96867.0,96866.0,0.00522428]
[1738984718884,0.09538561,96867.0,96866.0,0.00522428]
[1738984719086,0.25023661,96867.0,96866.0,0.00522428]
[1738984719263,0.27043866,96867.0,96866.0,0.00522428]
[1738984719451,0.31713866,96867.0,96866.0,0.00522428]
[1738984719847,0.63656218,96867.0,96866.0,0.00522428]
[1738984720636,0.63656218,96867.0,96866.0,0.00022428]
[1738984720942,0.63756218,96867.0,96866.0,0.00022428]
[1738984721602,0.63656218,96867.0,96866.0,0.00022428]
[1738984722622,0.63856218,96867.0,96866.0,0.00022428]
[1738984723268,0.64156218,96867.0,96866.0,0.00022428]
[1738984723606,0.64356218,96867.0,96866.0,0.00022428]
[1738984723837,0.280069,96856.0,96855.0,0.00022428]
[1738984724645,0.29684781,96856.0,96855.0,0.00022428]
[1738984724842,0.31701901,96856.0,96855.0,0.00022428]
[1738984725079,0.73894618,96856.0,96855.0,0.00035077]
[1738984725938,0.73994618,96856.0,96855.0,0.00035077]
[1738984726570,0.74894618,96856.0,96855.0,0.00135077]
[1738984726895,0.75594618,96856.0,96855.0,0.00235077]
[1738984727282,0.73894618,96856.0,96855.0,0.00035077]
[1738984727480,0.8690723,96856.0,96855.0,0.00235077]
[1738984727689,0.8780723,96856.0,96855.0,0.00235077]
[1738984727880,0.77556865,96856.0,96855.0,0.00235077]
[1738984728040,0.76856865,96856.0,96855.0,0.00135077]
[1738984728236,0.77556865,96856.0,96855.0,0.00235077]
[1738984729085,0.77556865,96856.0,96855.0,0.00225887]
[1738984729287,0.76656865,96856.0,96855.0,0.00125887]
[1738984729489,0.75956865,96856.0,96855.0,0.00025887]
[1738984729663,0.77913449,96856.0,96855.0,0.00125887]
[1738984729865,0.77913449,96856.0,96855.0,0.00025887]
[1738984730267,0.78813449,96856.0,96855.0,0.00125887]
[1738984730474,0.79513449,96856.0,96855.0,0.00225887]
[1738984730680,0.78456865,96856.0,96855.0,0.00225887]
[1738984732648,0.75956865,96856.0,96855.0,0.00025887]
[1738984732838,0.76856865,96856.0,96855.0,0.00225887]
[1738984733044,0.673065,96856.0,96855.0,0.00225887]
[1738984735159,0.65244253,96856.0,96855.0,0.00225887]
[1738984738559,1.16867253,96856.0,96855.0,0.00225887]
[1738984739422,0.56918001,96856.0,96855.0,0.25963252]
[1738984739585,0.56918001,96856.0,96855.0,0.44263252]
[1738984739783,0.54900881,96856.0,96855.0,0.45310653]
[1738984740014,0.56531654,96856.0,96855.0,0.45310653]
[1738984740367,0.54853773,96856.0,96855.0,0.45310653]
[1738984740914,0.54153773,96856.0,96855.0,0.45210653]
[1738984741067,0.02530773,96856.0,96855.0,0.45210653]
[1738984741266,0.009,96856.0,96855.0,0.45210653]
[1738984741660,0.0001068,96866.0,96865.0,0.304854]
[1738984741869,0.0001068,96866.0,96865.0,0.43035765]
[1738984743115,0.0001068,96866.0,96865.0,0.43835765]
[1738984743688,0.0001068,96866.0,96865.0,0.44435765]
[1738984743855,0.0001068,96866.0,96865.0,0.29435765]
[1738984746844,0.0001068,96866.0,96865.0,0.44435765]
[1738984747045,0.0001068,96866.0,96865.0,0.43635765]
[1738984747227,0.0001068,96866.0,96865.0,0.44335765]
[1738984747628,0.0001068,96866.0,96865.0,0.43635765]
[1738984748559,0.0001068,96866.0,96865.0,0.43035765]
[1738984748757,0.0001068,96866.0,96865.0,0.43535765]
[1738984749056,0.0011068,96866.0,96865.0,0.43835765]
[1738984749414,0.0021068,96866.0,96865.0,0.44435765]
[1738984749641,0.0021068,96866.0,96865.0,0.43835765]
[1738984749855,0.0011068,96866.0,96865.0,0.43035765]
[1738984750055,0.0021068,96866.0,96865.0,0.44635765]
[1738984751312,0.0011068,96866.0,96865.0,0.43735765]
[1738984751448,0.0021068,96866.0,96865.0,0.44335765]
[1738984751864,0.0011068,96866.0,96865.0,0.43635765]
[1738984752589,0.0011068,96866.0,96865.0,0.43835765]
[1738984752787,0.0011068,96866.0,96865.0,0.28835765]
[1738984752896,0.0011068,96866.0,96865.0,0.177854]
[1738984753116,0.0011068,96866.0,96865.0,0.160854]
[1738984753530,0.0021068,96866.0,96865.0,0.169854]
[1738984753950,0.0011068,96866.0,96865.0,0.160854]
[1738984754371,0.0011068,96866.0,96865.0,0.163854]
[1738984754788,0.0001068,96866.0,96865.0,0.157854]
[1738984754986,0.31953032,96866.0,96865.0,0.003]
[1738984755333,0.33589557,96866.0,96865.0,0.005]
[1738984756340,0.01647205,96866.0,96865.0,0.13050365]
[1738984756540,0.01647205,96866.0,96865.0,0.28535765]
[1738984756747,0.0001068,96866.0,96865.0,0.28535765]
[1738984759468,0.0001068,96866.0,96865.0,0.29552842]
[1738984760901,0.0001068,96866.0,96865.0,0.28535765]
[1738984766115,0.1241068,96866.0,96865.0,0.28535765]
[1738984768444,0.1241068,96866.0,96865.0,0.182854]
[1738984771145,0.13056056,96866.0,96865.0,0.159854]
[1738984771545,0.14692423,96866.0,96865.0,0.159854]
[1738984771751,0.14692423,96866.0,96865.0,0.005]
[1738984772002,0.46634775,96866.0,96865.0,0.005]
[1738984772306,0.46634775,96866.0,96865.0,0.159854]
[1738984775294,0.02292423,96866.0,96865.0,0.36885232]
[1738984775491,0.02292423,96866.0,96865.0,0.46745698]
[1738984775736,0.00656056,96866.0,96865.0,0.46745698]
[1738984776546,0.00656056,96866.0,96865.0,0.43535765]
[1738984776749,0.00656056,96866.0,96865.0,0.46745956]
[1738984776949,0.00656056,96866.0,96865.0,0.43535765]
[1738984777361,0.00656056,96866.0,96865.0,0.43235765]
[1738984777531,0.00656056,96866.0,96865.0,0.44135765]
[1738984777895,0.00656056,96866.0,96865.0,0.43935765]
[1738984778137,0.00756056,96866.0,96865.0,0.43835765]
[1738984778268,0.00656056,96866.0,96865.0,0.28035765]
[1738984778471,0.00656056,96866.0,96865.0,0.43535765]
[1738984778671,0.00656056,96866.0,96865.0,0.43835765]
[1738984778877,0.00656056,96866.0,96865.0,0.43035765]
[1738984779300,0.00656056,96866.0,96865.0,0.43435765]
[1738984779477,0.0001068,96866.0,96865.0,0.43435765]
[1738984779820,0.0001068,96866.0,96865.0,0.43735765]
[1738984780650,0.0001068,96866.0,96865.0,0.43335765]
[1738984780849,0.31953032,96866.0,96865.0,0.161854]
[1738984781171,0.3358927,96866.0,96865.0,0.004]
[1738984781372,0.3358927,96866.0,96863.0,0.206475]
[1738984781530,0.3358927,96866.0,96865.0,0.004]
[1738984782045,0.3358927,96866.0,96865.0,0.003]
[1738984782250,0.4161927,96866.0,96856.0,0.154869]
[1738984782424,0.154857,96864.0,96855.0,0.00025887]
[1738984782623,0.09666668,96865.0,96863.0,0.002]
[1738984782831,0.0803,96865.0,96860.0,0.154861]
[1738984783606,0.154863,96860.0,96855.0,0.00025887]
[1738984783806,0.0803,96859.0,96856.0,0.007]
[1738984784455,0.0803,96859.0,96855.0,0.15512887]
[1738984784793,0.0803,96859.0,96856.0,0.154868]
[1738984784970,0.31942352,96858.0,96855.0,0.00425887]
[1738984785174,0.31942352,96858.0,96855.0,0.00025887]
[1738984785373,0.31942352,96858.0,96856.0,0.001]
[1738984785610,0.31942352,96858.0,96856.0,0.003]
[1738984786164,0.31942352,96858.0,96856.0,0.002]
[1738984786861,0.31942352,96858.0,96855.0,0.00025887]
[1738984787249,0.154867,96857.0,96855.0,0.00025887]
[1738984787461,0.154867,96857.0,96855.0,0.00125887]
[1738984787606,0.154869,96856.0,96855.0,0.00125887]
[1738984787791,0.154869,96856.0,96855.0,0.00425887]
[1738984788097,0.154867,96857.0,96855.0,0.00525887]
[1738984788300,0.154867,96857.0,96855.0,0.00025887]
[1738984789119,0.002,96856.0,96855.0,0.00025887]
[1738984789328,0.156869,96856.0,96855.0,0.00025887]
[1738984789526,0.002,96856.0,96855.0,0.00025887]
[1738984789710,0.32142352,96856.0,96855.0,0.00025887]
[1738984790312,0.47429252,96856.0,96855.0,0.00025887]
[1738984790965,0.47529252,96856.0,96855.0,0.00025887]
[1738984791553,0.32242352,96856.0,96855.0,0.00025887]
[1738984792977,0.60719252,96856.0,96855.0,0.00025887]
[1738984793207,0.61364758,96856.0,96855.0,0.00025887]
[1738984794030,0.61164758,96856.0,96855.0,0.00025887]
[1738984794208,0.61064758,96856.0,96855.0,0.00025887]
[1738984794434,0.61264758,96856.0,96855.0,0.00025887]
[1738984795196,0.61464758,96856.0,96855.0,0.00025887]
[1738984799953,0.60819252,96856.0,96855.0,0.00025887]
[1738984800890,0.60619252,96856.0,96855.0,0.00025887]
[1738984801082,0.60619252,96856.0,96855.0,0.00125887]
[1738984801083,0.96819982,96856.0,96855.0,0.00125887]
[1738984801483,0.96619982,96856.0,96855.0,0.00125887]
[1738984801949,0.95919982,96856.0,96855.0,0.00025887]
[1738984802161,0.95919982,96856.0,96855.0,0.00125887]
[1738984802297,0.96619982,96856.0,96855.0,0.00125887]
[1738984802507,0.96619982,96856.0,96855.0,0.00025887]
[1738984802711,0.96619982,96856.0,96855.0,0.00125887]
[1738984803018,0.98019982,96856.0,96855.0,0.00225887]
[1738984803435,0.97319982,96856.0,96855.0,0.00125887]
[1738984803615,0.99338596,96856.0,96855.0,0.00225887]
[1738984803911,1.00138596,96856.0,96855.0,0.00225887]
[1738984804121,1.00138596,96856.0,96836.0,0.00022407]
[1738984804122,0.42908,96849.0,96836.0,0.00022407]
[1738984804276,0.279099,96837.0,96836.0,0.00022407]
[1738984804492,0.70102617,96837.0,96836.0,0.00022407]
[1738984804693,0.85102617,96837.0,96836.0,0.00022407]
[1738984804890,0.95352982,96837.0,96836.0,0.00022407]
[1738984805603,0.96779216,96837.0,96836.0,0.00022407]
[1738984805809,1.48412216,96837.0,96836.0,0.00022407]
[1738984807151,1.50460328,96837.0,96836.0,0.00022407]
[1738984807554,0.154941,96811.0,96810.0,0.00121951]
[1738984807857,0.59856452,96811.0,96810.0,0.00026962]
[1738984808710,0.60056452,96811.0,96810.0,0.00026962]
[1738984812234,1.11689452,96811.0,96810.0,0.00026962]
[1738984813581,1.12335315,96811.0,96810.0,0.00026962]
[1738984815988,0.99915315,96811.0,96810.0,0.00026962]
[1738984816737,0.84421215,96811.0,96810.0,0.00026962]
[1738984816935,0.84421215,96811.0,96810.0,0.28071527]
[1738984817531,0.84221215,96811.0,96810.0,0.28071527]
[1738984817729,0.84221215,96811.0,96810.0,0.28471527]
[1738984817938,0.84221215,96811.0,96810.0,0.28671527]
[1738984818234,0.83575352,96811.0,96810.0,0.28471527]
[1738984818491,0.83575352,96811.0,96810.0,0.28671527]
[1738984819200,0.83575352,96811.0,96810.0,0.28271527]
[1738984819626,0.83575352,96811.0,96810.0,0.28571527]
[1738984821668,0.95865352,96811.0,96810.0,0.00526962]
[1738984822653,0.95865352,96811.0,96810.0,0.00226962]
[1738984822854,0.95865352,96811.0,96810.0,0.00426962]
[1738984823056,0.96511213,96811.0,96810.0,0.00426962]
[1738984823217,0.96511213,96811.0,96810.0,0.00226962]
[1738984823620,0.96911213,96811.0,96810.0,0.00026962]
[1738984824024,0.96811213,96811.0,96810.0,0.00026962]
[1738984824406,0.97211213,96811.0,96810.0,0.00026962]
[1738984825438,0.97611213,96811.0,96810.0,0.00026962]
[1738984826952,0.53378861,96811.0,96810.0,0.29071527]
[1738984827158,0.53378861,96811.0,96810.0,0.28071527]
[1738984827760,0.52733,96811.0,96810.0,0.28071527]
[1738984827918,0.52033,96811.0,96810.0,0.28071527]
[1738984828116,0.53755282,96811.0,96810.0,0.28971527]
[1738984828319,0.53755282,96811.0,96810.0,0.28071527]
[1738984828517,0.53355282,96811.0,96810.0,0.28071527]
[1738984828721,0.53455282,96811.0,96810.0,0.00726962]
[1738984828920,0.53455282,96811.0,96810.0,0.16421162]
[1738984829483,0.53455282,96811.0,96810.0,0.16221162]
[1738984829688,0.51833,96811.0,96810.0,0.00726962]
[1738984829840,0.53256923,96811.0,96810.0,0.00026962]
[1738984830244,0.53456923,96811.0,96810.0,0.01626962]
[1738984830463,0.54102728,96811.0,96810.0,0.00926962]
[1738984830834,0.54102728,96811.0,96810.0,0.01426962]
[1738984831277,0.54002728,96811.0,96810.0,0.00926962]
[1738984831477,0.53902728,96811.0,96810.0,0.00026962]
[1738984831895,0.53902728,96811.0,96810.0,0.42471527]
[1738984831896,0.54002728,96811.0,96810.0,0.42471527]
[1738984832096,0.02369728,96811.0,96810.0,0.44771527]
[1738984832326,0.00645805,96811.0,96810.0,0.47275483]
[1738984832482,0.00645805,96811.0,96810.0,0.44071527]
[1738984832900,0.00645805,96811.0,96810.0,0.44271527]
[1738984833119,0.0762,96849.0,96810.0,0.25477327]
[1738984833120,0.00645805,96835.0,96810.0,0.25477327]
[1738984833351,0.00645805,96835.0,96828.0,0.154913]
[1738984833553,0.00645805,96835.0,96820.0,0.14322522]
[1738984833755,0.01988237,96834.0,96827.0,0.154914]
[1738984833956,0.00645805,96835.0,96821.0,0.10250365]
[1738984834162,0.00645805,96835.0,96828.0,0.154912]
[1738984834540,0.01988525,96834.0,96828.0,0.157912]
[1738984834785,0.154895,96840.0,96829.0,0.154912]
[1738984834981,0.01988295,96833.0,96829.0,0.154912]
[1738984835279,0.001,96835.0,96829.0,0.154912]
[1738984835496,0.01988237,96832.0,96829.0,0.154912]
[1738984835646,0.154895,96840.0,96829.0,0.154912]
[1738984835989,0.0198841,96835.0,96829.0,0.156912]
[1738984836541,0.0198841,96835.0,96829.0,0.002]
[1738984837258,0.31942352,96834.0,96829.0,0.004]
[1738984837461,0.33930877,96834.0,96829.0,0.004]
[1738984837715,0.33930877,96834.0,96829.0,0.002]
[1738984838122,0.33930877,96834.0,96829.0,0.005]
[1738984838748,0.33930877,96834.0,96829.0,0.002]
[1738984838932,0.33930877,96834.0,96829.0,0.005]
[1738984839155,0.33930877,96834.0,96829.0,0.003]
[1738984839502,0.33930877,96834.0,96829.0,0.005]
[1738984843040,0.01988525,96834.0,96833.0,0.154905]
[1738984843244,0.31942352,96843.0,96834.0,0.023]
[1738984843444,0.31942352,96843.0,96835.0,0.28143822]
[1738984843670,0.31942352,96843.0,96835.0,0.28040565]
[1738984845188,0.0011068,96836.0,96835.0,0.28740565]
[1738984845822,0.0011068,96836.0,96835.0,0.29240565]
[1738984846278,0.0011068,96836.0,96835.0,0.30256071]
[1738984848652,0.0011068,96836.0,96835.0,0.29240565]
[1738984850059,0.0011068,96836.0,96835.0,0.44240565]
[1738984850646,0.0001068,96836.0,96835.0,0.43540565]
[1738984850845,0.0001068,96836.0,96835.0,0.44340565]
[1738984851053,0.0011068,96836.0,96835.0,0.44340565]
[1738984851475,0.0001068,96836.0,96835.0,0.43540565]
[1738984851693,0.0001068,96836.0,96835.0,0.43040565]
[1738984851895,0.0011068,96836.0,96835.0,0.44440565]
[1738984852228,0.0011068,96836.0,96835.0,0.43940565]
[1738984852670,0.0021068,96836.0,96835.0,0.44840565]
[1738984855873,0.0011068,96836.0,96835.0,0.43940565]